bitfinex/quotes_BTCUSD_20251117
["timestamp","ask_amount","ask_price","bid_price","bid_amount"]
[1763406621873,0.04604,92773.0,92761.0,0.00044024]
[1763406621874,0.0301157,92770.0,92761.0,0.00044024]
[1763406622073,0.0301157,92770.0,92752.0,0.00027583]
[1763406622074,0.36641874,92761.0,92752.0,0.00027583]
[1763406622271,2.0,92758.0,92752.0,0.00033486]
[1763406622471,0.323,92755.0,92752.0,0.00033486]
[1763406622855,0.323,92753.0,92752.0,0.00033486]
[1763406622967,0.34307733,92753.0,92752.0,0.00033486]
[1763406623174,2.42557853,92753.0,92752.0,0.00033486]
[1763406623377,2.43560613,92753.0,92752.0,0.00033486]
[1763406624180,2.39652367,92753.0,92752.0,0.00033486]
[1763406624398,2.55379367,92753.0,92752.0,0.00033486]
[1763406625014,2.55479367,92753.0,92752.0,0.00033486]
[1763406625227,2.23179367,92753.0,92752.0,0.00033486]
[1763406626027,2.05194246,92753.0,92752.0,0.00033486]
[1763406626230,2.15561184,92753.0,92752.0,0.00033486]
[1763406626400,2.15461184,92753.0,92752.0,0.00033486]
[1763406626583,2.05094246,92753.0,92752.0,0.00033486]
[1763406627197,2.37394246,92753.0,92752.0,0.00033486]
[1763406627672,2.37694246,92753.0,92752.0,0.00033486]
[1763406627964,2.37794246,92753.0,92752.0,0.00033486]
[1763406628589,2.37694246,92753.0,92752.0,0.00033486]
[1763406628772,2.48061184,92753.0,92752.0,0.00033486]
[1763406629996,2.37894246,92753.0,92752.0,0.00033486]
[1763406630530,2.37694246,92753.0,92752.0,0.00033486]
[1763406630729,2.37794246,92753.0,92752.0,5.903e-05]
[1763406631271,1.84022612,92746.0,92712.0,9.903e-05]
[1763406631476,0.323,92727.0,92713.0,0.1479]
[1763406631670,0.94540646,92730.0,92714.0,0.1479]
[1763406631671,1.84022612,92724.0,92714.0,0.1479]
[1763406631876,2.0,92729.0,92727.0,9e-05]
[1763406632097,0.03247116,92734.0,92729.0,9e-05]
[1763406632304,0.323,92732.0,92729.0,9e-05]
[1763406632524,0.323,92732.0,92712.0,0.00013216]
[1763406632725,0.001,92727.0,92712.0,0.00013216]
[1763406633308,0.001,92727.0,92713.0,9e-05]
[1763406633914,2.0,92738.0,92726.0,9e-05]
[1763406634114,0.00091,92734.0,92716.0,0.02157124]
[1763406634520,0.323,92737.0,92716.0,0.02157124]
[1763406634715,0.001,92727.0,92716.0,0.02157124]
[1763406634961,0.94540646,92730.0,92716.0,0.01572824]
[1763406635114,0.323,92729.0,92712.0,0.00013216]
[1763406635315,0.323,92729.0,92713.0,0.09660332]
[1763406635517,0.323,92729.0,92712.0,0.00013216]
[1763406635758,0.323,92729.0,92713.0,0.09660332]
[1763406635955,0.001,92727.0,92713.0,0.09660332]
[1763406636410,0.001,92727.0,92714.0,0.02157171]
[1763406636568,0.001,92727.0,92715.0,0.09660332]
[1763406636767,0.001,92727.0,92716.0,0.02157124]
[1763406637211,0.323,92729.0,92716.0,0.02157124]
[1763406637414,0.94540646,92750.0,92716.0,0.02157124]
[1763406637618,0.001,92729.0,92716.0,0.02157124]
[1763406637816,0.323,92749.0,92715.0,0.09660332]
[1763406638017,1.00326986,92750.0,92715.0,0.09660332]
[1763406638018,2.0,92746.0,92715.0,0.09660332]
[1763406638218,0.001,92727.0,92715.0,0.09660332]
[1763406638569,0.01998271,92726.0,92715.0,0.09660332]
[1763406638747,0.01998271,92726.0,92714.0,0.1479]
[1763406638748,0.01998271,92725.0,92714.0,0.1479]
[1763406638950,0.01998271,92724.0,92714.0,0.1479]
[1763406639253,0.01998271,92723.0,92715.0,0.09660332]
[1763406639450,0.323,92729.0,92715.0,0.09660332]
[1763406639451,0.01998271,92722.0,92715.0,0.09660332]
[1763406639665,0.0578634,92750.0,92716.0,0.001]
[1763406639666,0.01998271,92721.0,92716.0,0.001]
[1763406639809,0.323,92749.0,92716.0,0.001]
[1763406639810,0.02002422,92720.0,92716.0,0.001]
[1763406640010,0.02002422,92719.0,92716.0,0.001]
[1763406640215,0.02002422,92718.0,92716.0,0.001]
[1763406640511,0.02002422,92717.0,92716.0,0.02257124]
[1763406640727,0.02002422,92717.0,92716.0,0.02157124]
[1763406640928,2.0,92754.0,92716.0,0.02157124]
[1763406641171,0.94540646,92760.0,92732.0,0.09660332]
[1763406641172,2.0,92752.0,92732.0,0.09660332]
[1763406641346,0.323,92749.0,92729.0,0.09660332]
[1763406641526,0.02004234,92748.0,92730.0,0.02156799]
[1763406641731,0.02004234,92747.0,92731.0,0.02156776]
[1763406641947,0.02004234,92746.0,92731.0,0.02156776]
[1763406642148,0.02004234,92745.0,92730.0,0.01270837]
[1763406642350,0.01491304,92755.0,92730.0,0.01270837]
[1763406642351,0.02004234,92744.0,92730.0,0.01270837]
[1763406642551,0.02004234,92743.0,92729.0,0.09660332]
[1763406642783,0.323,92755.0,92716.0,0.09660332]
[1763406642784,0.323,92739.0,92716.0,0.09660332]
[1763406642951,0.02004234,92738.0,92716.0,0.09660332]
[1763406643196,0.323,92729.0,92712.0,0.00013216]
[1763406643399,0.94540646,92722.0,92712.0,0.00013216]
[1763406643604,0.34304234,92721.0,92712.0,0.00013216]
[1763406643971,0.02004234,92720.0,92712.0,0.00013216]
[1763406644143,0.02004234,92719.0,92712.0,0.00013216]
[1763406644346,0.02004234,92718.0,92712.0,0.00013216]
[1763406644506,0.02004234,92717.0,92712.0,0.00013216]
[1763406644708,0.02004234,92716.0,92713.0,0.09660332]
[1763406645028,0.02004234,92715.0,92713.0,0.09660332]
[1763406645349,0.02004234,92714.0,92713.0,0.09660332]
[1763406646688,0.02004234,92714.0,92712.0,0.00013216]
[1763406646907,0.323,92729.0,92712.0,0.00013216]
[1763406646908,0.323,92729.0,92713.0,0.1489]
[1763406647152,0.08391804,92728.0,92713.0,0.1489]
[1763406647308,0.03014553,92727.0,92713.0,0.1489]
[1763406647562,0.03014553,92726.0,92713.0,0.1489]
[1763406647766,0.03014553,92725.0,92713.0,0.1479]
[1763406647937,0.03014553,92724.0,92713.0,0.1479]
[1763406648158,0.323,92729.0,92713.0,0.1479]
[1763406648159,0.323,92722.0,92713.0,0.1479]
[1763406648365,0.03015219,92721.0,92713.0,0.1479]
[1763406648581,0.03015219,92720.0,92713.0,0.1479]
[1763406648778,0.03015219,92719.0,92713.0,0.1479]
[1763406648993,0.323,92722.0,92713.0,0.1479]
[1763406648994,0.03015219,92718.0,92713.0,0.1479]
[1763406649191,0.02009702,92717.0,92713.0,0.1479]
[1763406649366,0.03015747,92716.0,92713.0,0.1479]
[1763406649565,0.02009702,92715.0,92713.0,0.1479]
[1763406649781,0.02009702,92714.0,92713.0,0.1479]
[1763406651356,0.03016871,92714.0,92713.0,0.1479]
[1763406651768,0.03016871,92714.0,92712.0,0.00013216]
[1763406652018,0.03021432,92713.0,92712.0,0.00013216]
[1763406652734,0.02014287,92713.0,92712.0,0.00013216]
[1763406653016,0.02014287,92713.0,92712.0,0.02170434]
[1763406653886,0.02014287,92713.0,92712.0,0.02270434]
[1763406654230,0.02014287,92713.0,92712.0,0.13560434]
[1763406654463,0.02014287,92713.0,92712.0,0.02170434]
[1763406654695,0.02014287,92713.0,92712.0,0.00213216]
[1763406655729,0.02014287,92713.0,92712.0,0.00013216]
[1763406656136,0.02014287,92713.0,92712.0,0.00113216]
[1763406656556,0.02014287,92713.0,92712.0,0.00013216]
[1763406656934,0.02014287,92713.0,92712.0,0.00113216]
[1763406657562,0.02014287,92713.0,92712.0,0.00013216]
[1763406658048,0.02014287,92713.0,92712.0,0.16960434]
[1763406658162,0.02014287,92713.0,92712.0,0.14803216]
[1763406658802,0.02014287,92713.0,92712.0,0.14903216]
[1763406660388,0.02014287,92713.0,92712.0,0.14803216]
[1763406660799,0.02014287,92713.0,92712.0,0.14903216]
[1763406661117,0.02014287,92713.0,92712.0,0.17060434]
[1763406661545,0.02014287,92713.0,92712.0,0.14903216]
[1763406662006,0.02014287,92713.0,92712.0,0.14803216]
[1763406662416,0.02017313,92713.0,92712.0,0.14903216]
[1763406662761,0.02017313,92713.0,92712.0,0.14803216]
[1763406662967,0.02017313,92713.0,92712.0,0.16960434]
[1763406663205,0.12017313,92713.0,92712.0,0.00113216]
[1763406663617,0.12017313,92713.0,92712.0,0.00013216]
[1763406664016,0.12017313,92713.0,92712.0,0.00113216]
[1763406665966,0.12017313,92713.0,92712.0,0.00013216]
[1763406666173,0.12017313,92713.0,92712.0,0.00113216]
[1763406666586,0.12017313,92713.0,92712.0,0.00013216]
[1763406666907,0.12017313,92713.0,92712.0,0.00113216]
[1763406667106,0.44317313,92713.0,92712.0,0.00113216]
[1763406668250,0.44317313,92713.0,92712.0,0.00013216]
[1763406668251,0.48749044,92713.0,92712.0,0.00013216]
[1763406668426,0.44317313,92713.0,92712.0,0.00113216]
[1763406668985,0.44317313,92713.0,92712.0,0.00013216]
[1763406669142,0.4532563,92713.0,92712.0,0.00013216]
[1763406669342,0.4532563,92713.0,92712.0,0.00113216]
[1763406669553,0.49858193,92713.0,92712.0,0.00113216]
[1763406669767,2.49858193,92713.0,92712.0,0.00013216]
[1763406670767,2.49195249,92713.0,92712.0,0.00013216]
[1763406671174,2.4542563,92713.0,92712.0,0.00013216]
[1763406673349,2.49294355,92713.0,92712.0,0.00013216]
[1763406673608,2.4542563,92713.0,92712.0,0.00013216]
[1763406673996,2.49294313,92713.0,92712.0,0.00013216]
[1763406674142,2.4542563,92713.0,92712.0,0.00013216]
[1763406674340,0.4542267,92713.0,92712.0,0.00013216]
[1763406675698,2.50155038,92713.0,92712.0,0.00013216]
[1763406675837,2.53156052,92713.0,92712.0,0.00013216]
[1763406676042,2.4542267,92713.0,92712.0,0.00013216]
[1763406676247,0.1302267,92713.0,92712.0,0.00013216]
[1763406676461,0.12114353,92713.0,92712.0,0.00013216]
[1763406676666,0.101,92713.0,92712.0,0.00013216]
[1763406676871,0.12114701,92713.0,92712.0,0.00013216]
[1763406677313,0.44314701,92713.0,92712.0,0.00013216]
[1763406679190,0.423,92713.0,92712.0,0.00013216]
[1763406679568,0.44314836,92713.0,92712.0,0.00013216]
[1763406679975,0.423,92713.0,92712.0,0.00013216]
[1763406681354,0.1,92713.0,92712.0,0.00013216]
[1763406683862,0.1,92713.0,92712.0,0.00113216]
[1763406684425,0.423,92713.0,92712.0,0.00113216]
[1763406684600,0.423,92713.0,92712.0,0.00013216]
[1763406684799,0.44314667,92713.0,92712.0,0.00113216]
[1763406685241,0.44314667,92713.0,92712.0,0.00013216]
[1763406685942,0.44414667,92713.0,92712.0,0.00013216]
[1763406686163,0.44314667,92713.0,92712.0,0.00013216]
[1763406686374,0.44414667,92713.0,92712.0,0.00013216]
[1763406686806,0.02014667,92713.0,92712.0,0.00013216]
[1763406688203,0.02114667,92713.0,92712.0,0.00013216]
[1763406689965,2.35422622,92713.0,92712.0,0.00013216]
[1763406690480,2.38332813,92713.0,92712.0,0.00013216]
[1763406691002,2.35422622,92713.0,92712.0,0.00013216]
[1763406691405,0.35422622,92713.0,92712.0,0.00013216]
[1763406691591,0.35322622,92713.0,92712.0,0.00013216]
[1763406691797,0.34414667,92713.0,92712.0,0.00013216]
[1763406692640,0.34314667,92713.0,92712.0,0.00013216]
[1763406692843,0.02014667,92713.0,92712.0,0.00013216]
[1763406694236,0.02014667,92713.0,92712.0,0.00113216]
[1763406694667,0.02014667,92713.0,92712.0,0.00013216]
[1763406695225,2.0,92721.0,92712.0,0.00013216]
[1763406695434,0.01009376,92720.0,92712.0,0.00013216]
[1763406695614,0.75178666,92722.0,92712.0,0.00013216]
[1763406695816,0.01009401,92721.0,92712.0,0.00013216]
[1763406696023,0.75178666,92722.0,92712.0,0.00013216]
[1763406696231,0.01009451,92721.0,92712.0,0.00013216]
[1763406696434,0.01009445,92720.0,92712.0,0.00013216]
[1763406696634,0.75178666,92722.0,92712.0,0.00013216]
[1763406696835,0.01009442,92721.0,92712.0,0.00013216]
[1763406697041,0.01009442,92720.0,92712.0,0.00013216]
[1763406697242,0.75178666,92722.0,92712.0,0.00013216]
[1763406697441,0.001,92720.0,92712.0,0.00013216]
[1763406697646,0.323,92721.0,92712.0,0.00013216]
[1763406697842,0.01009567,92720.0,92712.0,0.00013216]
[1763406698046,0.324,92721.0,92712.0,0.00013216]
[1763406698268,0.01009554,92720.0,92712.0,0.00013216]
[1763406698464,0.323,92721.0,92712.0,0.00013216]
[1763406698667,0.01109584,92720.0,92712.0,0.00013216]
[1763406698844,0.323,92721.0,92712.0,0.00013216]
[1763406699073,0.01009613,92720.0,92712.0,0.00013216]
[1763406699274,0.01894504,92720.0,92712.0,0.00013216]
[1763406699797,0.01009545,92719.0,92712.0,0.00013216]
[1763406699993,0.01009545,92718.0,92712.0,0.00013216]
[1763406700235,0.01009545,92717.0,92712.0,0.00013216]
[1763406700413,0.01009545,92716.0,92712.0,0.00013216]
[1763406700568,0.01009545,92715.0,92712.0,0.00013216]
[1763406700775,0.001,92720.0,92712.0,0.00013216]
[1763406701032,0.01009391,92719.0,92712.0,0.00013216]
[1763406701199,0.01009391,92718.0,92712.0,0.00013216]
[1763406701532,0.01109335,92717.0,92712.0,0.00013216]
[1763406701728,0.323,92728.0,92712.0,0.00013216]
[1763406702028,0.001,92720.0,92712.0,0.00013216]
[1763406702758,0.001,92720.0,92713.0,0.09660332]
[1763406703167,0.03246414,92744.0,92714.0,0.02157171]
[1763406703368,0.75178666,92740.0,92727.0,0.09660332]
[1763406703799,0.323,92739.0,92727.0,0.09660332]
[1763406704056,0.75178666,92740.0,92727.0,0.09660332]
[1763406704463,0.323,92739.0,92727.0,0.09660332]
[1763406705584,0.75178666,92740.0,92727.0,0.09660332]
[1763406705786,0.75178666,92740.0,92727.0,0.09760332]
[1763406706070,0.75178666,92740.0,92727.0,0.001]
[1763406706408,0.75178666,92740.0,92714.0,0.02144549]
[1763406707047,0.75178666,92730.0,92714.0,0.01498724]
[1763406707256,0.07517867,92739.0,92727.0,0.09660332]
[1763406707585,0.02017589,92738.0,92727.0,0.09660332]
[1763406707807,0.02017589,92737.0,92727.0,0.09660332]
[1763406708087,0.02017589,92736.0,92727.0,0.09660332]
[1763406708283,0.02017589,92735.0,92727.0,0.09660332]
[1763406708599,0.02017589,92734.0,92727.0,0.09660332]
[1763406708791,0.75178666,92740.0,92727.0,0.09660332]
[1763406708792,0.323,92739.0,92727.0,0.09660332]
[1763406708950,0.323,92739.0,92728.0,0.02156845]
[1763406708951,0.02017045,92738.0,92728.0,0.02156845]
[1763406709162,0.02017045,92737.0,92728.0,0.02156845]
[1763406709494,0.02017045,92736.0,92728.0,0.02156845]
[1763406709729,0.02017045,92735.0,92728.0,0.02156845]
[1763406709961,0.323,92749.0,92728.0,0.02156845]
[1763406710208,0.323,92739.0,92727.0,0.001]
[1763406710447,0.02016747,92738.0,92713.0,0.09660332]
[1763406710655,0.323,92739.0,92727.0,0.09660332]
[1763406710656,0.02016747,92737.0,92727.0,0.09660332]
[1763406710849,0.323,92739.0,92727.0,0.09660332]
[1763406711047,0.02016659,92738.0,92727.0,0.09660332]
[1763406711252,0.02016659,92738.0,92728.0,0.02156845]
[1763406712140,0.323,92759.0,92728.0,0.02156845]
[1763406712272,0.75178666,92740.0,92712.0,0.00013216]
[1763406712476,0.75178666,92730.0,92712.0,0.00013216]
[1763406712706,0.75178666,92722.0,92712.0,0.00013216]
[1763406712884,0.323,92729.0,92712.0,0.00013216]
[1763406713082,0.02015963,92728.0,92712.0,0.00013216]
[1763406713287,0.75178666,92740.0,92712.0,0.02170434]
[1763406713288,0.323,92739.0,92712.0,0.02170434]
[1763406713498,0.02016102,92738.0,92712.0,0.02170434]
[1763406713711,0.323,92739.0,92712.0,0.02170434]
[1763406713712,0.02016102,92737.0,92712.0,0.02170434]
[1763406713953,0.02016102,92736.0,92725.0,0.09660332]
[1763406714190,0.323,92749.0,92726.0,0.02156892]
[1763406714381,0.02016078,92748.0,92726.0,0.02156892]
[1763406714598,0.02016078,92747.0,92726.0,0.02156892]
[1763406714806,0.02016078,92746.0,92726.0,0.02156892]
[1763406714960,0.02016078,92745.0,92726.0,0.02156892]
[1763406715162,0.323,92749.0,92726.0,0.02156892]
[1763406715362,0.02015723,92748.0,92726.0,0.02156892]
[1763406715566,0.323,92749.0,92726.0,0.02156892]
[1763406715567,0.02015723,92747.0,92739.0,0.09660332]
[1763406715919,0.02015723,92746.0,92726.0,0.02156892]
[1763406716229,0.02015723,92745.0,92726.0,0.02256892]
[1763406716443,0.02015723,92744.0,92726.0,0.001]
[1763406716610,0.75178666,92740.0,92725.0,0.09660332]
[1763406716831,0.02015214,92739.0,92725.0,0.09660332]
[1763406717021,0.75178666,92740.0,92725.0,0.09660332]
[1763406717172,0.02015233,92739.0,92725.0,0.09660332]
[1763406717374,0.323,92750.0,92725.0,0.09660332]
[1763406717577,0.02015227,92749.0,92726.0,0.02156892]
[1763406717775,0.02015227,92748.0,92726.0,0.02156892]
[1763406718014,0.02015227,92747.0,92726.0,0.02156892]
[1763406718220,0.02015227,92746.0,92726.0,0.02156892]
[1763406718418,0.02015227,92745.0,92726.0,0.02156892]
[1763406718763,0.02015227,92744.0,92726.0,0.02156892]
[1763406718982,0.02015227,92743.0,92725.0,0.09660332]
[1763406719211,0.75178666,92740.0,92725.0,0.09660332]
[1763406720323,0.39817867,92739.0,92725.0,0.09660332]
[1763406720544,0.39817867,92739.0,92712.0,0.00013216]
[1763406720775,0.39817867,92739.0,92722.0,0.09660332]
[1763406721012,0.020154,92738.0,92723.0,0.02156962]
[1763406721237,0.020154,92737.0,92723.0,0.02156962]
[1763406721461,0.020154,92736.0,92723.0,0.02156962]
[1763406721678,0.323,92749.0,92723.0,0.02156962]
[1763406721908,0.02016919,92748.0,92723.0,0.02156962]
[1763406722126,0.02016919,92747.0,92723.0,0.02156962]
[1763406722343,0.02016919,92746.0,92723.0,0.02256962]
[1763406722559,0.02016919,92745.0,92723.0,0.01494249]
[1763406722778,0.02016919,92744.0,92723.0,0.01394249]
[1763406723011,0.0139397,92755.0,92723.0,0.02156962]
[1763406723012,0.02016919,92743.0,92723.0,0.02156962]
[1763406723259,0.02901014,92766.0,92736.0,0.09660332]
[1763406723447,0.001,92746.0,92736.0,0.09660332]
[1763406723655,0.75178666,92760.0,92736.0,0.09660332]
[1763406723838,0.02017462,92759.0,92736.0,0.09660332]
[1763406724034,0.02017462,92758.0,92736.0,0.09660332]
[1763406724241,0.75178666,92750.0,92714.0,0.12574375]
[1763406724467,0.03026075,92749.0,92732.0,0.09660332]
[1763406724643,0.03026075,92748.0,92732.0,0.09660332]
[1763406724801,0.07719613,92757.0,92714.0,0.09660332]
[1763406724802,0.75178666,92742.0,92714.0,0.09660332]
[1763406725002,0.02017462,92741.0,92731.0,0.09660332]
[1763406725206,0.02017462,92740.0,92731.0,0.09660332]
[1763406725410,0.02017462,92739.0,92714.0,0.09660332]
[1763406725618,0.02017462,92738.0,92714.0,0.09660332]
[1763406725815,0.02017462,92737.0,92728.0,0.09660332]
[1763406726029,0.02017462,92736.0,92728.0,0.09660332]
[1763406726227,0.02017462,92735.0,92729.0,0.01543275]
[1763406726413,0.02017462,92734.0,92731.0,0.001]
[1763406726652,0.323,92749.0,92731.0,0.02256776]
[1763406726861,0.02018122,92748.0,92731.0,0.02256776]
[1763406727056,0.4090172,92749.0,92731.0,0.02256776]
[1763406727057,0.02018122,92747.0,92731.0,0.02256776]
[1763406727262,0.02018122,92746.0,92731.0,0.001]
[1763406727517,0.02018122,92746.0,92728.0,0.09660332]
[1763406727518,0.02018122,92745.0,92728.0,0.09660332]
[1763406727674,0.02018122,92744.0,92728.0,0.09660332]
[1763406727891,0.323,92749.0,92729.0,0.02156822]
[1763406727892,0.02018122,92743.0,92729.0,0.02156822]
[1763406728078,0.02018122,92742.0,92729.0,0.02156822]
[1763406728274,0.02018122,92741.0,92728.0,0.09660332]
[1763406728556,0.02018122,92740.0,92729.0,0.02156822]
[1763406728830,0.02018122,92739.0,92729.0,0.02156822]
[1763406729035,0.02018122,92738.0,92729.0,0.02156822]
[1763406729349,0.02018122,92737.0,92729.0,0.02156822]
[1763406729543,0.02018122,92736.0,92728.0,0.001]
[1763406729743,0.02018122,92735.0,92730.0,0.09660332]
[1763406729944,0.02018122,92734.0,92730.0,0.09660332]
[1763406730152,0.02018122,92733.0,92730.0,0.09660332]
[1763406730476,0.75178666,92740.0,92728.0,0.001]
[1763406730477,0.02018122,92732.0,92728.0,0.001]
[1763406730653,0.02018122,92731.0,92728.0,0.001]
[1763406730863,0.02018122,92730.0,92728.0,0.001]
[1763406731073,0.02018122,92729.0,92728.0,0.001]
[1763406731727,0.02018122,92738.0,92712.0,0.00013216]
[1763406732035,1.07478666,92730.0,92729.0,0.001]
[1763406732186,0.34318122,92730.0,92729.0,0.001]
[1763406732383,0.323,92729.0,92714.0,0.02157171]
[1763406732583,0.02018122,92728.0,92714.0,0.02157171]
[1763406732954,0.75178666,92724.0,92712.0,0.00013216]
[1763406733183,0.02018122,92723.0,92715.0,0.09660332]
[1763406733442,0.02019655,92722.0,92716.0,0.02157124]
[1763406733609,0.02019655,92721.0,92716.0,0.02157124]
[1763406733882,0.02019655,92720.0,92712.0,0.00013216]
[1763406734106,0.02019655,92719.0,92716.0,0.09660332]
[1763406734407,0.02019655,92718.0,92716.0,0.09660332]
[1763406734642,0.02019655,92717.0,92712.0,0.00013216]
[1763406734879,0.02019655,92716.0,92712.0,0.00013216]
[1763406735091,0.75178666,92722.0,92712.0,0.00013216]
[1763406735092,0.75178666,92722.0,92712.0,0.00113216]
[1763406735320,0.02018396,92721.0,92712.0,0.00113216]
[1763406735535,0.02018396,92720.0,92712.0,0.00013216]
[1763406735797,0.02018396,92719.0,92712.0,0.00013216]
[1763406736044,0.02904178,92715.0,92712.0,0.00113216]
[1763406736266,0.03026981,92714.0,92712.0,0.00113216]
[1763406736473,0.02018396,92713.0,92712.0,0.00113216]
[1763406736879,0.0043296,92725.0,92712.0,0.00113216]
[1763406737094,0.02015048,92724.0,92713.0,0.09660332]
[1763406737243,0.02015048,92723.0,92713.0,0.09660332]
[1763406737514,0.001,92714.0,92713.0,0.09660332]
[1763406737728,0.001,92714.0,92712.0,0.00013216]
[1763406738389,0.001,92714.0,92713.0,0.09660332]
[1763406738592,0.323,92722.0,92713.0,0.09660332]
[1763406738805,0.02014429,92721.0,92713.0,0.09660332]
[1763406739010,0.02014429,92720.0,92714.0,0.02157171]
[1763406739217,0.323,92735.0,92714.0,0.02157171]
[1763406739424,0.03021726,92734.0,92715.0,0.09660332]
[1763406739638,0.03021699,92733.0,92715.0,0.09660332]
[1763406739834,0.03021699,92732.0,92715.0,0.09660332]
[1763406740215,0.02014484,92731.0,92715.0,0.09660332]
[1763406740437,0.02014484,92730.0,92716.0,0.02157124]
[1763406740656,0.02014484,92729.0,92716.0,0.02157124]
[1763406740885,0.02014484,92728.0,92716.0,0.02157124]
[1763406741120,0.02014484,92727.0,92716.0,0.02157124]
[1763406741392,0.02014484,92726.0,92716.0,0.02157124]
[1763406741659,0.02014484,92725.0,92715.0,0.09660332]
[1763406741908,0.02014484,92724.0,92716.0,0.02157124]
[1763406742082,0.02014484,92723.0,92716.0,0.02257124]
[1763406742322,0.02014484,92722.0,92716.0,0.02257124]
[1763406742495,0.323,92736.0,92716.0,0.0159977]
[1763406742643,0.02016162,92735.0,92716.0,0.001]
[1763406742846,0.02016162,92734.0,92716.0,0.02257124]
[1763406743091,0.96471774,92750.0,92729.0,0.09660332]
[1763406743092,0.02016162,92733.0,92729.0,0.09660332]
[1763406743292,0.07217712,92759.0,92729.0,0.09660332]
[1763406743293,0.02904178,92752.0,92729.0,0.09660332]
[1763406743467,0.03025395,92751.0,92730.0,0.01817025]
[1763406743805,0.03025395,92750.0,92731.0,0.02156776]
[1763406744012,0.03025395,92750.0,92715.0,0.09760332]
[1763406744013,0.35325395,92749.0,92732.0,0.09660332]
[1763406744216,0.0201693,92748.0,92733.0,0.01341107]
[1763406744490,0.0201693,92748.0,92716.0,0.02157124]
[1763406744841,0.0201693,92748.0,92729.0,0.09660332]
[1763406745259,0.0201693,92748.0,92715.0,0.09660332]
[1763406745556,0.01008128,92747.0,92729.0,0.09660332]
[1763406745763,0.0201693,92746.0,92730.0,0.01421662]
[1763406746005,0.0201693,92745.0,92730.0,0.02156799]
[1763406746227,0.0201693,92744.0,92730.0,0.02156799]
[1763406746445,0.0201693,92743.0,92730.0,0.02156799]
[1763406746666,0.0201693,92742.0,92730.0,0.02156799]
[1763406746893,0.0201693,92741.0,92730.0,0.02156799]
[1763406747114,0.0201693,92740.0,92730.0,0.02156799]
[1763406747344,0.0201693,92739.0,92730.0,0.02156799]
[1763406747567,0.02904178,92759.0,92730.0,0.02156799]
[1763406747803,0.0201676,92758.0,92743.0,0.09660332]
[1763406748001,0.0201676,92757.0,92743.0,0.09660332]
[1763406748205,0.0201676,92756.0,92743.0,0.09660332]
[1763406748369,0.0201676,92755.0,92730.0,0.02156799]
[1763406748567,0.323,92766.0,92730.0,0.001]
[1763406748568,0.94490559,92740.0,92730.0,0.001]
[1763406748768,0.323,92738.0,92730.0,0.001]
[1763406748963,0.03024766,92737.0,92730.0,0.00113216]
[1763406749165,0.03024766,92736.0,92730.0,0.00113216]
[1763406749390,0.03024766,92735.0,92730.0,0.00113216]
[1763406749624,0.03024766,92734.0,92730.0,0.00013216]
[1763406749808,0.02904178,92739.0,92730.0,0.00013216]
[1763406749809,0.0201676,92733.0,92730.0,0.00013216]
[1763406750008,0.323,92739.0,92730.0,0.00013216]
[1763406750009,0.0201676,92732.0,92730.0,0.00013216]
[1763406750211,0.0201676,92731.0,92730.0,0.00013216]
[1763406751421,0.0201676,92731.0,92730.0,0.00113216]
[1763406752630,0.0201676,92731.0,92730.0,0.00013216]
[1763406752832,0.0201676,92731.0,92730.0,0.00113216]
[1763406753448,0.0201676,92731.0,92730.0,0.00013216]
[1763406753657,0.0201676,92731.0,92730.0,0.00113216]
[1763406754298,0.0201676,92731.0,92730.0,0.00013216]
[1763406755830,0.09090861,92731.0,92730.0,0.00113216]
[1763406756055,2.56336446,92731.0,92730.0,0.00113216]
[1763406756342,2.41390861,92731.0,92730.0,0.00013216]
[1763406756546,2.41390861,92731.0,92730.0,0.00113216]
[1763406756950,2.41390861,92731.0,92730.0,0.00013216]
[1763406757392,2.41490861,92731.0,92730.0,0.00013216]
[1763406758069,2.50633861,92731.0,92730.0,0.00013216]
[1763406758582,2.41490861,92731.0,92730.0,0.00013216]
[1763406759311,2.4192383,92731.0,92730.0,0.00013216]
[1763406760236,2.5106683,92731.0,92730.0,0.00013216]
[1763406760603,2.4192383,92731.0,92730.0,0.00013216]
[1763406761149,2.43048929,92731.0,92730.0,0.00013216]
[1763406761351,2.52191929,92731.0,92730.0,0.00013216]
[1763406762266,2.56533803,92731.0,92730.0,0.00013216]
[1763406763660,2.56433803,92731.0,92730.0,0.00013216]
[1763406763817,2.56702007,92731.0,92730.0,0.00013216]
[1763406764022,2.56802007,92731.0,92730.0,0.00013216]
[1763406764274,2.62505809,92731.0,92730.0,0.00013216]
[1763406764592,2.56702007,92731.0,92730.0,0.00013216]
[1763406764776,2.56902007,92731.0,92730.0,0.00013216]
[1763406765029,2.52269496,92731.0,92730.0,0.00013216]
[1763406765156,2.55608704,92731.0,92730.0,0.00013216]
[1763406765355,2.40299052,92731.0,92730.0,0.00013216]
[1763406765607,2.35957178,92731.0,92730.0,0.00013216]
[1763406765808,2.03757178,92731.0,92730.0,0.00013216]
[1763406766141,2.38959243,92731.0,92730.0,0.00013216]
[1763406766299,2.38859243,92731.0,92730.0,0.00013216]
[1763406766498,2.46124116,92731.0,92730.0,0.00013216]
[1763406766903,2.35857178,92731.0,92730.0,0.00013216]
[1763406767107,2.35757178,92731.0,92730.0,0.00013216]
[1763406767494,2.35857178,92731.0,92730.0,0.00013216]
[1763406767688,2.38759539,92731.0,92730.0,0.00013216]
[1763406769692,2.35857178,92731.0,92730.0,0.00013216]
[1763406770623,2.34849729,92731.0,92730.0,0.00013216]
[1763406771066,2.35858449,92731.0,92730.0,0.00013216]
[1763406772493,2.35858477,92731.0,92730.0,0.00013216]
[1763406772660,2.35758477,92731.0,92730.0,0.00013216]
[1763406774014,2.46125415,92731.0,92730.0,0.00013216]
[1763406774237,2.61333415,92731.0,92730.0,0.00013216]
[1763406774448,2.61433415,92731.0,92730.0,0.00013216]
[1763406774674,2.65775289,92731.0,92730.0,0.00013216]
[1763406775099,2.66038603,92731.0,92730.0,0.00013216]
[1763406775754,2.65938603,92731.0,92730.0,2.16e-06]
[1763406775964,0.00999999,92720.0,92710.0,0.0004]
[1763406776180,0.36641874,92707.0,92690.0,0.0004]
[1763406776402,2.42953,92691.0,92690.0,0.0004]
[1763406776622,2.45978508,92691.0,92690.0,0.0004]
[1763406776831,2.65488446,92691.0,92690.0,0.0004]
[1763406777045,2.68737131,92691.0,92690.0,0.0004]
[1763406777973,2.68937131,92691.0,92690.0,0.0004]
[1763406778193,2.73279005,92691.0,92690.0,0.0004]
[1763406778419,2.77148684,92691.0,92690.0,0.0004]
[1763406778625,2.73546024,92691.0,92690.0,0.0004]
[1763406779589,2.73446024,92691.0,92690.0,0.0004]
[1763406779790,2.73646024,92691.0,92690.0,0.0004]
[1763406780051,2.73546024,92691.0,92690.0,0.0004]